bitfinex/quotes_BTCUSD_20220115
["timestamp","ask_amount","ask_price","bid_price","bid_amount"]
[1642215115390,0.07087402,43035.0,43033.0,0.65449133]
[1642215116392,0.07087402,43035.0,43034.0,0.59639646]
[1642215120990,0.07087402,43035.0,43033.0,0.65449133]
[1642215122594,0.07087402,43035.0,43033.0,0.05809487]
[1642215123191,0.07087402,43035.0,43033.0,0.65449133]
[1642215124192,0.07087402,43035.0,43033.0,0.05809487]
[1642215124632,0.07087402,43035.0,43033.0,0.65449133]
[1642215125034,0.07087402,43035.0,43034.0,0.59639646]
[1642215126934,0.07087402,43035.0,43033.0,0.05809487]
[1642215126935,0.07087402,43035.0,43033.0,0.65449133]
[1642215132142,0.25931268,43034.0,43033.0,0.65449133]
[1642215132342,0.25931268,43034.0,43033.0,0.59639646]
[1642215132841,0.25931268,43034.0,43032.0,0.65449146]
[1642215133941,0.25931268,43034.0,43032.0,0.058095]
[1642215135244,0.07087402,43035.0,43032.0,0.058095]
[1642215135446,0.07087402,43035.0,43032.0,0.11619304]
[1642215136790,0.07087402,43035.0,43032.0,0.17428704]
[1642215137187,0.07087402,43035.0,43032.0,0.11619304]
[1642215137589,0.07087402,43035.0,43032.0,0.7125895]
[1642215140037,0.07087402,43035.0,43033.0,0.59639646]
[1642215141439,0.07087402,43035.0,43032.0,0.7125895]
[1642215141838,0.07087402,43035.0,43033.0,0.0501855]
[1642215145891,0.24909368,43034.0,43033.0,0.0501855]
[1642215146089,0.25529939,43034.0,43033.0,0.0501855]
[1642215146290,0.0060375,43034.0,43033.0,0.0501855]
[1642215156343,0.00471593,43034.0,43033.0,0.0501855]
[1642215169860,0.26718459,43034.0,43033.0,0.0501855]
[1642215171362,0.26403435,43034.0,43033.0,0.0501855]
[1642215171762,0.00471593,43034.0,43033.0,0.0501855]
[1642215172663,0.00471593,43034.0,43033.0,0.4263115]
[1642215172862,0.00471593,43034.0,43033.0,0.0501855]
[1642215173686,0.00471593,43034.0,43033.0,0.64658196]
[1642215176188,0.00471593,43034.0,43033.0,0.0501855]
[1642215177245,0.00471593,43034.0,43032.0,0.17428705]
[1642215177846,0.00471593,43034.0,43033.0,0.376126]
[1642215179049,0.00471593,43034.0,43033.0,0.97252246]
[1642215179648,0.00471593,43034.0,43033.0,0.376126]
[1642215180251,0.27367023,43034.0,43032.0,0.71258951]
[1642215180451,0.28321569,43034.0,43032.0,0.71258951]
[1642215180913,0.28321569,43034.0,43032.0,0.11619305]
[1642215181510,0.2561555,43034.0,43032.0,0.11619305]
[1642215183913,0.00471593,43034.0,43032.0,0.11619305]
[1642215184113,0.25630275,43034.0,43032.0,0.11619305]
[1642215185138,0.00471593,43034.0,43032.0,0.11619305]
[1642215185339,0.00471593,43034.0,43032.0,2.53226929]
[1642215185538,0.00471593,43034.0,43033.0,0.376126]
[1642215185838,0.00471593,43034.0,43032.0,0.17428805]
[1642215186439,0.00471593,43034.0,43033.0,0.376126]
[1642215188287,0.00471593,43034.0,43033.0,0.97252246]
[1642215189088,0.00471593,43034.0,43033.0,0.376126]
[1642215191193,0.00471593,43034.0,43032.0,0.71258951]
[1642215192038,0.00471593,43034.0,43032.0,0.81191726]
[1642215192839,0.00471593,43034.0,43032.0,0.71260638]
[1642215193338,0.00471593,43034.0,43033.0,0.59641333]
[1642215198004,0.00471593,43034.0,43032.0,0.71260638]
[1642215198503,0.00471593,43034.0,43033.0,0.59641333]
[1642215199638,0.00471593,43034.0,43033.0,0.97253933]
[1642215200039,0.00471593,43034.0,43033.0,1.08871533]
[1642215200938,0.00471593,43034.0,43033.0,0.97253933]
[1642215201143,0.00471593,43034.0,43033.0,0.59641333]
[1642215202140,0.26424663,43034.0,43033.0,0.59641333]
[1642215202344,0.26424663,43034.0,43032.0,0.71260638]
[1642215202542,0.00471593,43034.0,43032.0,0.71260638]
[1642215203318,0.00471593,43034.0,43033.0,0.59641333]
[1642215203821,0.00471593,43034.0,43032.0,0.71260638]
[1642215205925,0.25449312,43034.0,43032.0,0.71260638]
[1642215206125,0.00471593,43034.0,43032.0,0.71260638]
[1642215206425,0.00471593,43034.0,43032.0,0.11619305]
[1642215207540,0.25478521,43034.0,43032.0,0.11619305]
[1642215207739,0.00471593,43034.0,43032.0,0.11619305]
[1642215211998,0.00471593,43034.0,43033.0,0.376126]
[1642215216341,0.00471593,43034.0,43032.0,0.71260638]
[1642215218143,0.00471593,43034.0,43032.0,0.77070038]
[1642215219695,0.00471593,43034.0,43032.0,0.17428705]
[1642215220897,0.00471593,43034.0,43032.0,0.77070038]
[1642215221900,0.00471593,43034.0,43033.0,0.59641333]
[1642215222641,0.00471593,43034.0,43033.0,0.376126]
[1642215223541,0.00471593,43034.0,43032.0,0.77070038]
[1642215223942,0.00471593,43034.0,43033.0,0.59641333]
[1642215224342,0.00471593,43034.0,43032.0,0.77070038]
[1642215224944,0.00471593,43034.0,43033.0,0.376126]
[1642215226897,0.00471593,43034.0,43032.0,0.77070038]
[1642215227098,0.00471593,43034.0,43032.0,0.71260638]
[1642215231743,0.00471593,43034.0,43032.0,0.11619305]
[1642215232346,0.00471593,43034.0,43033.0,0.376126]
[1642215234404,0.00471593,43034.0,43033.0,0.97253933]
[1642215235106,0.00471593,43034.0,43033.0,0.59641333]
[1642215236609,0.00471593,43034.0,43032.0,0.77070138]
[1642215238962,0.00471593,43034.0,43032.0,0.17428805]
[1642215239362,0.00471593,43034.0,43032.0,0.11619305]
[1642215239765,0.00471593,43034.0,43032.0,0.71260638]
[1642215240063,0.00471593,43034.0,43032.0,0.77070138]
[1642215240264,0.00471593,43034.0,43033.0,0.376126]
[1642215240467,0.00471593,43034.0,43032.0,0.77070138]
[1642215240899,0.00471593,43034.0,43033.0,0.376126]
[1642215241504,0.00471593,43034.0,43032.0,0.77070138]
[1642215243402,0.00471593,43034.0,43033.0,0.376126]
[1642215245641,0.00471593,43034.0,43032.0,0.77070138]
[1642215249500,0.00471593,43034.0,43033.0,0.59641333]
[1642215250701,0.00471593,43034.0,43032.0,0.11619305]
[1642215254244,0.00471593,43034.0,43032.0,0.17428805]
[1642215254846,0.00471593,43034.0,43032.0,0.77072292]
[1642215255897,0.00471593,43034.0,43032.0,0.71262792]
[1642215259202,0.00471593,43034.0,43033.0,0.376126]
[1642215262242,0.00471593,43034.0,43033.0,0.97256087]
[1642215265493,0.00471593,43034.0,43033.0,0.59643487]
[1642215265693,0.00471593,43034.0,43032.0,0.71262792]
[1642215266092,0.00471593,43034.0,43033.0,0.376126]
[1642215268043,0.00471593,43034.0,43032.0,0.71262792]
[1642215269053,0.00471593,43034.0,43032.0,0.17428805]
[1642215270047,0.00471593,43034.0,43033.0,0.376126]
[1642215270249,0.07087402,43035.0,43033.0,0.376126]
[1642215270899,0.07087402,43035.0,43032.0,0.17428805]
[1642215271494,0.07087402,43035.0,43032.0,0.77072292]
[1642215272798,0.07087402,43035.0,43032.0,0.17428805]
[1642215273597,0.07087402,43035.0,43032.0,0.11619305]
[1642215273996,0.07087402,43035.0,43032.0,0.71262792]
[1642215274647,0.07087402,43035.0,43032.0,0.17428805]
[1642215276149,0.07087402,43035.0,43033.0,0.376126]
[1642215278810,0.07087402,43035.0,43032.0,0.77072292]
[1642215279611,0.07087402,43035.0,43032.0,0.71262792]
[1642215280613,0.07087402,43035.0,43032.0,0.11619305]
[1642215281014,0.07087402,43035.0,43033.0,0.376126]
[1642215281213,0.07087402,43035.0,43032.0,0.71262792]
[1642215281612,0.07087402,43035.0,43032.0,0.11619305]
[1642215282972,0.07087402,43035.0,43033.0,0.376126]
[1642215284070,0.07087402,43035.0,43032.0,0.71262792]
[1642215286497,0.07087402,43035.0,43032.0,0.77072292]
[1642215289396,0.07087402,43035.0,43032.0,0.17428805]
[1642215290649,0.07087402,43035.0,43033.0,0.376126]
[1642215295020,0.07087402,43035.0,43032.0,0.77072292]
[1642215295416,0.07087402,43035.0,43033.0,0.376126]
[1642215296418,0.07087402,43035.0,43032.0,0.77072292]
[1642215296618,0.07087402,43035.0,43033.0,0.24499596]
[1642215296818,0.07087402,43035.0,43033.0,0.84143083]
[1642215299748,0.07087402,43035.0,43033.0,0.83643083]
[1642215300795,0.07087402,43035.0,43033.0,0.8463835]
[1642215301897,0.07087402,43035.0,43034.0,0.24155043]
[1642215304000,0.07087402,43035.0,43033.0,0.59643487]
[1642215304573,0.07087402,43035.0,43032.0,0.77072392]
[1642215304773,0.07087402,43035.0,43033.0,0.376126]
[1642215304974,0.07087402,43035.0,43033.0,0.6187284]
[1642215305574,0.07087402,43035.0,43033.0,0.376126]
[1642215305974,0.07087402,43035.0,43033.0,0.97256087]
[1642215307174,0.07087402,43035.0,43033.0,0.376126]
[1642215313253,0.07087402,43035.0,43032.0,0.77072392]
[1642215314453,0.07087402,43035.0,43032.0,2.85581301]
[1642215314654,0.07087402,43035.0,43033.0,0.376126]
[1642215318633,0.07087402,43035.0,43034.0,0.59]
[1642215325502,0.07087402,43035.0,43034.0,0.83252164]
[1642215326105,0.07087402,43035.0,43034.0,1.20864764]
[1642215326305,0.59154544,43043.0,43038.0,0.058086]
[1642215326503,0.59154544,43043.0,43039.0,0.00125658]
[1642215326703,0.00012033,43041.0,43039.0,0.00125658]
[1642215327156,0.59154544,43043.0,43039.0,0.58554113]
[1642215327157,0.00010314,43040.0,43039.0,0.58554113]
[1642215327357,0.89107314,43046.0,43040.0,0.376126]
[1642215327556,0.59154544,43047.0,43043.0,0.05808]
[1642215327756,6.876e-05,43044.0,43042.0,0.02914335]
[1642215328761,6.876e-05,43044.0,43043.0,0.05808]
[1642215328762,0.23006876,43044.0,43043.0,0.05808]
[1642215332101,0.23006876,43044.0,43042.0,0.0872227]
[1642215332304,0.57209459,43049.0,43042.0,0.0872227]
[1642215332503,0.57209459,43049.0,43045.0,0.05808182]
[1642215332703,0.37619476,43048.0,43045.0,0.05808182]
[1642215333505,0.37619476,43048.0,43046.0,0.058077]
[1642215333907,6.876e-05,43048.0,43046.0,0.058077]
[1642215334106,0.376126,43047.0,43045.0,0.05808182]
[1642215334306,6.876e-05,43048.0,43045.0,0.05808182]
[1642215334553,6.876e-05,43048.0,43045.0,0.11615982]
[1642215334754,6.876e-05,43048.0,43045.0,0.05808182]
[1642215336158,6.876e-05,43048.0,43045.0,0.11615882]
[1642215336959,6.876e-05,43048.0,43045.0,0.05808182]
[1642215337360,6.876e-05,43048.0,43045.0,0.42116054]
[1642215338707,0.23006876,43048.0,43045.0,0.42116054]
[1642215339708,0.23006876,43048.0,43045.0,0.47923754]
[1642215347302,0.23006876,43048.0,43046.0,0.116141]
[1642215347503,0.23006876,43048.0,43047.0,0.24268377]
[1642215352382,0.23006876,43048.0,43047.0,0.61880977]
[1642215352584,0.23006876,43048.0,43047.0,0.67687977]
[1642215352785,0.23006876,43048.0,43047.0,0.77687977]
[1642215352984,0.59218374,43054.0,43048.0,1.45]
[1642215353185,0.59218374,43054.0,43053.0,0.00128886]
[1642215353409,0.12775074,43054.0,43053.0,0.00128886]
[1642215353610,0.12775074,43054.0,43053.0,1.28312115]
[1642215353810,0.12775074,43054.0,43053.0,2.36798246]
[1642215354010,0.69013635,43056.0,43054.0,0.3]
[1642215354211,0.69013635,43056.0,43054.0,0.358055]
[1642215354411,0.00012033,43055.0,43054.0,0.358055]
[1642215354615,0.51902033,43060.0,43055.0,0.726126]
[1642215354815,0.69013635,43061.0,43055.0,0.35]
[1642215355012,6.876e-05,43059.0,43058.0,0.058059]
[1642215355313,0.37619476,43059.0,43057.0,0.058056]
[1642215356814,0.37619476,43059.0,43057.0,0.116117]
[1642215357260,0.32615473,43059.0,43057.0,0.116117]
[1642215358358,0.2226801,43064.0,43057.0,0.116117]
[1642215358558,0.354449,43063.0,43061.0,0.50590555]
[1642215358758,0.35451776,43063.0,43061.0,0.50590555]
[1642215359361,6.876e-05,43063.0,43061.0,0.50590555]
[1642215359764,0.23006876,43063.0,43061.0,0.50590555]
[1642215360364,6.876e-05,43063.0,43062.0,0.05805676]
[1642215364413,6.876e-05,43063.0,43061.0,0.50590555]
[1642215364860,6.876e-05,43063.0,43061.0,0.56396491]
[1642215365661,0.15936602,43066.0,43061.0,0.56396491]
[1642215365861,0.07096727,43067.0,43061.0,0.56396491]
[1642215366262,0.07096727,43067.0,43061.0,0.50590555]
[1642215369307,0.07096727,43067.0,43062.0,0.05805682]
[1642215369509,0.07096727,43067.0,43064.0,0.058056]
[1642215370510,0.07096727,43067.0,43066.0,0.26683027]
[1642215370710,0.0464,43067.0,43066.0,0.26683027]
[1642215370911,0.04646876,43067.0,43066.0,0.26683027]
[1642215372866,0.73660511,43067.0,43066.0,0.26683027]
[1642215373462,0.73660511,43067.0,43065.0,0.11609559]
[1642215374466,0.73660511,43067.0,43066.0,0.29443195]
[1642215375067,0.73660511,43067.0,43066.0,1.19099517]
[1642215375266,0.73660511,43067.0,43066.0,1.19223167]
[1642215375267,0.74760511,43067.0,43066.0,1.19223167]
[1642215375468,0.74760511,43067.0,43066.0,1.25027467]
[1642215376115,0.05746876,43067.0,43066.0,1.25027467]
[1642215376516,0.04646876,43067.0,43066.0,1.25027467]
[1642215376715,0.04646876,43067.0,43066.0,1.62624567]
[1642215379116,0.59376928,43070.0,43067.0,1.05]
[1642215379317,0.59376928,43070.0,43068.0,0.17410134]
[1642215379559,0.59376928,43070.0,43069.0,1.32912127]
[1642215379758,0.59376928,43070.0,43069.0,0.57489817]
[1642215380158,0.59376928,43071.0,43069.0,0.57489817]
[1642215380562,0.59383804,43071.0,43069.0,0.69097593]
[1642215382059,0.59383804,43071.0,43070.0,0.558034]
[1642215382958,0.59383804,43071.0,43070.0,0.058034]
[1642215383161,0.59483804,43071.0,43070.0,0.058034]
[1642215383840,0.59483804,43071.0,43070.0,0.458034]
[1642215384637,0.59483804,43071.0,43070.0,0.058034]
[1642215384839,0.59483804,43071.0,43070.0,0.408034]
[1642215385039,0.59383804,43071.0,43070.0,0.408034]
[1642215385845,0.59383804,43071.0,43070.0,0.058034]
[1642215387269,0.59483804,43071.0,43070.0,0.058034]
[1642215388474,0.59383804,43071.0,43070.0,0.058034]
[1642215388974,6.876e-05,43071.0,43070.0,0.058034]
[1642215389173,0.00106876,43071.0,43070.0,0.058034]
[1642215389372,0.00106876,43071.0,43070.0,0.434005]
[1642215389773,0.00106876,43071.0,43070.0,1.27020268]
[1642215390173,0.003,43080.0,43070.0,1.27020268]
[1642215390174,0.24655876,43079.0,43073.0,0.05804]
[1642215390373,0.24655876,43079.0,43074.0,0.05803996]
[1642215390574,8.596e-05,43076.0,43074.0,0.05803996]
[1642215391012,6.876e-05,43075.0,43074.0,0.05803996]
[1642215391314,6.876e-05,43075.0,43073.0,0.05804]
[1642215391911,0.54616041,43081.0,43073.0,0.20804]
[1642215392110,0.354449,43080.0,43073.0,0.20804]
[1642215392309,6.877e-05,43079.0,43073.0,0.20804]
[1642215392710,6.877e-05,43079.0,43073.0,0.15]
[1642215392913,0.354449,43078.0,43073.0,0.15]
[1642215393111,0.24230133,43076.0,43070.0,0.59]
[1642215393514,0.24230133,43076.0,43071.0,6.876e-05]
[1642215394566,6.877e-05,43079.0,43071.0,6.876e-05]
[1642215394768,0.354449,43078.0,43071.0,6.876e-05]
[1642215395367,0.354449,43078.0,43072.0,0.116083]
[1642215396369,6.877e-05,43079.0,43072.0,0.116083]
[1642215396571,0.354449,43078.0,43072.0,0.116083]
[1642215396770,6.877e-05,43079.0,43072.0,0.116083]
[1642215397171,6.877e-05,43079.0,43078.0,0.45890577]
[1642215397374,0.35451777,43079.0,43078.0,0.45890577]
[1642215399011,6.877e-05,43079.0,43078.0,0.45890577]
[1642215399311,0.001,43084.0,43079.0,0.6]
[1642215399312,0.07136877,43084.0,43079.0,0.6]
[1642215399511,0.07136877,43084.0,43080.0,0.17407309]
[1642215399711,6.876e-05,43083.0,43081.0,0.30680024]
[1642215399911,6.876e-05,43083.0,43082.0,0.52347218]
[1642215400115,6.876e-05,43083.0,43082.0,0.27769408]
[1642215401212,6.876e-05,43083.0,43081.0,0.05802405]
[1642215402463,6.876e-05,43083.0,43081.0,0.31106335]
[1642215403068,0.69020511,43083.0,43081.0,0.31106335]
[1642215403267,0.69020511,43083.0,43082.0,0.68781145]
[1642215403469,0.69020511,43083.0,43081.0,0.31106335]
[1642215403668,0.69020511,43083.0,43081.0,0.05802405]
[1642215403868,0.69020511,43083.0,43080.0,0.18107559]
[1642215404468,0.69020511,43083.0,43080.0,0.17407559]
[1642215405270,0.73820511,43083.0,43080.0,0.17407559]
[1642215405668,0.69013635,43081.0,43080.0,0.17407559]
[1642215405917,0.69013635,43081.0,43080.0,0.11605059]
[1642215407218,0.74013635,43081.0,43080.0,0.11605059]
[1642215408520,0.69013635,43081.0,43080.0,0.11605059]
[1642215409320,0.74013635,43081.0,43080.0,0.11605059]
[1642215410063,0.44234245,43081.0,43080.0,0.11605059]
[1642215410464,0.39234245,43081.0,43080.0,0.11605059]
[1642215410667,0.39234245,43081.0,43080.0,0.16975896]
[1642215411365,0.6944755,43081.0,43080.0,0.16975896]
[1642215412466,0.6944755,43081.0,43080.0,1.00643587]
[1642215412864,0.6944755,43081.0,43080.0,1.06445787]
[1642215413073,0.6944755,43081.0,43080.0,1.44042887]
[1642215413311,0.7294755,43081.0,43080.0,1.45142887]
[1642215413509,0.035,43081.0,43080.0,1.45142887]
[1642215414511,0.59568662,43082.0,43080.0,1.44165927]
[1642215414708,0.59568662,43082.0,43081.0,0.65]
[1642215415309,0.62568662,43082.0,43081.0,0.013]
[1642215415510,0.62568662,43082.0,43081.0,0.363]
[1642215415709,0.62568662,43082.0,43081.0,0.013]
[1642215416509,6.876e-05,43083.0,43080.0,0.70173237]
[1642215416711,0.69454426,43083.0,43080.0,0.70173237]
[1642215417482,0.59564656,43081.0,43080.0,0.71173237]
[1642215417682,0.59564656,43081.0,43080.0,0.65370837]
[1642215418384,0.6944755,43082.0,43080.0,0.65370837]
[1642215418582,0.6944755,43082.0,43080.0,0.64370837]
[1642215419385,0.7514755,43082.0,43080.0,0.64870837]
[1642215420589,0.6944755,43082.0,43080.0,0.64370837]
[1642215420825,0.59567363,43081.0,43080.0,0.70173437]
[1642215421222,0.59567363,43081.0,43080.0,0.94832068]
[1642215422422,0.64067363,43082.0,43080.0,0.94832068]
[1642215422622,0.59567363,43082.0,43080.0,0.70173437]
[1642215422822,0.59567363,43082.0,43080.0,0.75975995]
[1642215423022,0.59567363,43082.0,43080.0,0.70173395]
[1642215423224,0.59567363,43082.0,43080.0,0.64370837]
[1642215423422,0.64067363,43082.0,43080.0,0.65170837]
[1642215424024,0.59567363,43081.0,43080.0,0.65170837]
[1642215424662,0.59567363,43081.0,43080.0,0.64370837]
[1642215425264,0.63967363,43081.0,43080.0,0.65070837]
[1642215425865,0.63967363,43081.0,43080.0,0.8867334]
[1642215426466,0.63967363,43081.0,43080.0,0.8797334]
[1642215426667,0.69454426,43083.0,43080.0,0.8797334]
[1642215426868,6.876e-05,43083.0,43081.0,0.4920189]
[1642215427067,6.876e-05,43083.0,43082.0,0.05370588]
[1642215427269,0.04806876,43083.0,43082.0,0.05370588]
[1642215428634,6.876e-05,43083.0,43082.0,0.05370588]
[1642215429033,6.876e-05,43083.0,43082.0,0.29122652]
[1642215431539,6.876e-05,43083.0,43082.0,0.05370588]
[1642215435820,6.876e-05,43083.0,43082.0,0.64370588]
[1642215436420,6.876e-05,43083.0,43082.0,0.70172988]
[1642215436820,6.876e-05,43083.0,43082.0,0.94746702]
[1642215437220,6.876e-05,43083.0,43082.0,1.24746702]
[1642215437420,6.876e-05,43083.0,43082.0,1.25646702]
[1642215438221,6.876e-05,43083.0,43082.0,2.35646702]
[1642215438421,6.876e-05,43083.0,43082.0,2.73243802]
[1642215438621,0.113,43084.0,43083.0,1.5]
[1642215438820,0.59680216,43085.0,43084.0,1.475971]
[1642215438821,0.24575216,43085.0,43084.0,1.475971]
[1642215439022,0.441,43086.0,43084.0,1.64569238]
[1642215439222,0.441,43086.0,43085.0,0.26186029]
[1642215439423,0.24575216,43087.0,43086.0,1.1]
[1642215439683,0.6944755,43089.0,43087.0,1.9]
[1642215439882,0.6954755,43093.0,43088.0,1.99961997]
[1642215440086,0.6954755,43093.0,43091.0,0.00129716]
[1642215440282,0.64643547,43093.0,43092.0,1.79623527]
[1642215440488,0.64643547,43093.0,43092.0,2.14743335]
[1642215440682,0.64643547,43093.0,43092.0,2.50255722]
[1642215440884,0.001,43098.0,43092.0,1.23656122]
[1642215441083,0.001,43098.0,43092.0,0.86059022]
[1642215441285,0.00024066,43097.0,43092.0,0.91159022]
[1642215441484,0.00024066,43097.0,43093.0,0.058006]
[1642215441684,0.001,43098.0,43093.0,0.058006]
[1642215441685,0.00022347,43096.0,43093.0,0.058006]
[1642215441884,0.00022347,43096.0,43094.0,0.75328823]
[1642215442085,1.67582725,43105.0,43100.0,0.34033774]
[1642215442386,0.354449,43104.0,43100.0,0.34033774]
[1642215442585,0.354449,43104.0,43093.0,0.5]
[1642215442785,0.0003438,43103.0,43093.0,0.5]
[1642215442987,0.349449,43102.0,43093.0,0.5]
[1642215443187,0.28716911,43102.0,43093.0,0.5]
[1642215443417,0.00030942,43101.0,43093.0,0.633]
[1642215443618,0.00030942,43101.0,43096.0,0.4552073]
[1642215443817,0.00029223,43100.0,43096.0,0.4552073]
[1642215444018,0.00029223,43100.0,43096.0,0.71859873]
[1642215444217,0.00027504,43099.0,43096.0,0.71859873]
[1642215444618,0.24420988,43100.0,43096.0,0.71859873]
[1642215444919,0.24420988,43100.0,43099.0,0.34410351]
[1642215445218,0.25656484,43104.0,43099.0,0.34410351]
[1642215445419,0.34949,43103.0,43096.0,0.74959873]
[1642215445622,8.595e-05,43103.0,43096.0,0.4862073]
[1642215446621,8.595e-05,43103.0,43096.0,0.4552073]
[1642215446821,8.595e-05,43103.0,43096.0,0.74953906]
[1642215447265,8.595e-05,43103.0,43097.0,0.05800365]
[1642215447465,8.595e-05,43103.0,43098.0,0.26829509]
[1642215447667,8.595e-05,43103.0,43096.0,0.4872073]
[1642215448365,0.34949,43102.0,43096.0,0.4872073]
[1642215448767,0.34949,43102.0,43096.0,0.4552073]
[1642215449466,0.53811128,43104.0,43096.0,0.5552073]
[1642215449866,0.30503518,43104.0,43097.0,0.00010314]
[1642215450672,0.30403518,43104.0,43097.0,0.00010314]
[1642215451520,0.5963,43105.0,43097.0,0.23911404]
[1642215452021,0.5963,43105.0,43098.0,8.595e-05]
[1642215452421,0.5963,43105.0,43097.0,0.00010314]
[1642215452620,0.5893,43105.0,43097.0,0.00010314]
[1642215453421,0.5933,43105.0,43097.0,0.00010314]
[1642215453621,0.5933,43105.0,43097.0,0.05810607]
[1642215454021,0.5933,43105.0,43098.0,8.595e-05]
[1642215454222,0.5933,43105.0,43102.0,0.26921656]
[1642215454421,0.34949,43104.0,43102.0,0.26921656]
[1642215454669,0.33982901,43107.0,43102.0,0.26921656]
[1642215454870,0.34949,43106.0,43102.0,0.26921656]
[1642215455270,0.032033,43107.0,43102.0,0.26921656]
[1642215455471,0.037033,43107.0,43102.0,0.26921656]
[1642215456572,0.032033,43107.0,43102.0,0.26921656]
[1642215457375,0.001,43107.0,43102.0,0.26921656]
[1642215457775,0.001,43107.0,43104.0,0.25048524]
[1642215458424,0.00133073,43111.0,43104.0,0.25048524]
[1642215458623,0.3049,43112.0,43104.0,0.25048524]
[1642215458825,6.876e-05,43107.0,43106.0,0.05799067]
[1642215459424,6.876e-05,43107.0,43106.0,0.46896749]
[1642215459825,6.876e-05,43107.0,43106.0,0.41097682]
[1642215460727,0.00080337,43112.0,43107.0,0.7]
[1642215460932,0.00080337,43112.0,43109.0,0.05798176]
[1642215461126,6.876e-05,43111.0,43109.0,0.11596476]
[1642215461527,6.876e-05,43111.0,43110.0,0.24263726]
[1642215461728,6.876e-05,43111.0,43110.0,0.30061926]
[1642215462173,6.876e-05,43111.0,43110.0,0.24263726]
[1642215464476,6.876e-05,43111.0,43110.0,0.83263726]
[1642215465477,6.876e-05,43111.0,43110.0,0.93663726]
[1642215466020,6.876e-05,43111.0,43110.0,0.694]
[1642215466616,6.876e-05,43111.0,43110.0,0.59]
[1642215467317,6.876e-05,43111.0,43110.0,0.91781919]
[1642215467520,6.876e-05,43111.0,43110.0,1.02681919]
[1642215468218,0.01817347,43114.0,43110.0,1.02681919]
[1642215468619,0.01817347,43114.0,43110.0,0.91781919]
[1642215469567,0.01817347,43114.0,43110.0,1.01881919]
[1642215470773,0.01817347,43114.0,43110.0,0.91781919]
[1642215471574,0.01817347,43114.0,43110.0,1.01781919]
[1642215471972,0.78872725,43113.0,43110.0,1.01781919]
[1642215472775,0.78872725,43113.0,43110.0,0.91781919]
[1642215473417,0.79472725,43113.0,43110.0,1.01781919]
[1642215474023,0.006,43113.0,43110.0,1.01781919]
[1642215474817,0.01817347,43114.0,43110.0,0.91781919]
[1642215475416,0.01817347,43114.0,43110.0,1.01481919]
[1642215476218,0.01817347,43114.0,43110.0,0.687]
[1642215476825,0.78972725,43115.0,43110.0,0.59]
[1642215477470,0.79172725,43115.0,43110.0,0.688]
[1642215478772,0.34949,43114.0,43110.0,0.59]
[1642215478972,0.78972725,43115.0,43110.0,0.59]
[1642215479377,0.78872725,43114.0,43110.0,0.59]
[1642215479576,0.78872725,43114.0,43110.0,0.691]
[1642215480826,0.78872725,43114.0,43110.0,0.59]
[1642215481427,0.79172725,43114.0,43110.0,0.691]
[1642215482029,0.003,43114.0,43110.0,0.691]
[1642215482626,0.003,43114.0,43110.0,0.59]
[1642215482826,0.001,43115.0,43110.0,0.59]
[1642215483430,0.001,43115.0,43110.0,0.692]
[1642215484684,0.0462,43114.0,43110.0,0.59]
[1642215484879,0.34949,43113.0,43110.0,0.59]
[1642215485079,0.10418388,43112.0,43110.0,0.59]
[1642215485279,0.39569,43111.0,43110.0,0.59]
[1642215485479,0.65142782,43111.0,43110.0,0.615]
[1642215486079,0.39569,43111.0,43110.0,0.615]
[1642215486781,0.39569,43111.0,43110.0,0.59]
[1642215487185,0.72896754,43111.0,43110.0,0.59]
[1642215487583,0.39569,43111.0,43110.0,0.644]
[1642215487984,0.65572733,43111.0,43110.0,0.644]
[1642215488921,0.65572733,43111.0,43110.0,0.59]
[1642215489524,0.71172733,43111.0,43110.0,0.59]
[1642215490726,0.65572733,43111.0,43110.0,0.59]
[1642215491527,0.70372733,43111.0,43110.0,0.59]
[1642215492770,0.65572733,43111.0,43110.0,0.59]
[1642215493472,0.69072733,43111.0,43110.0,0.59]
[1642215493875,0.43069,43111.0,43110.0,0.59]
[1642215494073,0.68832686,43111.0,43110.0,0.59]
[1642215494272,0.69255269,43111.0,43110.0,0.59]
[1642215494471,0.43069,43111.0,43110.0,0.59]
[1642215494671,0.65342536,43111.0,43110.0,0.59]
[1642215494874,0.92573492,43111.0,43110.0,0.59]
[1642215495475,0.98073492,43111.0,43110.0,0.59]
[1642215496219,0.72299956,43111.0,43110.0,0.59]
[1642215496420,0.97898306,43111.0,43110.0,0.59]
[1642215496720,0.93291549,43111.0,43110.0,0.59]
[1642215497320,0.66060593,43111.0,43110.0,0.59]
[1642215497523,0.44669,43111.0,43110.0,0.59]
[1642215498723,0.39569,43111.0,43110.0,0.59]
[1642215499975,0.0462,43111.0,43110.0,0.59]
[1642215503528,2.36565787,43111.0,43110.0,0.59]
[1642215503729,2.71514787,43111.0,43110.0,0.59]
[1642215504533,2.77315287,43111.0,43110.0,0.59]
[1642215504934,2.71514787,43111.0,43110.0,0.59]
[1642215505531,2.76914787,43111.0,43110.0,0.59]
[1642215506433,0.44969,43111.0,43110.0,0.59]
[1642215506834,0.39569,43111.0,43110.0,0.59]
[1642215507077,0.64230221,43111.0,43110.0,0.59]
[1642215507275,0.39569,43111.0,43110.0,0.59]
[1642215507472,0.64231509,43111.0,43110.0,0.59]
[1642215509578,0.67831509,43111.0,43110.0,0.59]
[1642215510820,0.64231509,43111.0,43110.0,0.59]
[1642215511525,0.68431509,43111.0,43110.0,0.59]
[1642215513326,0.64231509,43111.0,43110.0,0.59]
[1642215513526,0.68131509,43111.0,43110.0,0.59]
[1642215514970,0.64231509,43111.0,43110.0,0.59]
[1642215515570,0.66631509,43111.0,43110.0,0.59]
[1642215516873,0.64231509,43111.0,43110.0,0.59]
[1642215517573,0.66631509,43111.0,43110.0,0.59]
[1642215518943,0.64231509,43111.0,43110.0,0.59]
[1642215519643,0.66631509,43111.0,43110.0,0.59]
[1642215520847,0.64231509,43111.0,43110.0,0.59]
[1642215521543,0.66731509,43111.0,43110.0,0.59]
[1642215522878,0.64231509,43111.0,43110.0,0.59]
[1642215523679,0.41969,43111.0,43110.0,0.59]
[1642215524878,0.39569,43111.0,43110.0,0.59]
[1642215539385,0.0462,43111.0,43110.0,0.59]
[1642215539585,0.0462,43111.0,43110.0,0.614]
[1642215541428,0.0462,43111.0,43110.0,0.59]
[1642215541624,0.0462,43111.0,43110.0,0.613]
[1642215542026,2.7696308,43111.0,43110.0,0.613]
[1642215542227,3.1191208,43111.0,43110.0,0.613]
[1642215542626,3.37577084,43111.0,43110.0,0.613]
[1642215543028,3.37577084,43111.0,43110.0,0.59]
[1642215543629,3.39477084,43111.0,43110.0,0.601]
[1642215544878,3.37577084,43111.0,43110.0,0.601]